bitfinex-derivatives/quotes_SOLF0:USTF0_20260220
["timestamp","ask_amount","ask_price","bid_price","bid_amount"]
[1771607502368,24.93909721,83.687,83.642,10.7621]
[1771607502572,24.93909721,83.687,83.611,24.97289512]
[1771607503074,24.93909721,83.687,83.622,24.97289512]
[1771607503666,24.93909721,83.687,83.63,24.97289512]
[1771607503870,24.93909721,83.686,83.63,24.97289512]
[1771607504071,24.93909721,83.686,83.632,24.97289512]
[1771607505576,24.93909721,83.686,83.634,24.97289512]
[1771607506071,24.93909721,83.701,83.634,24.97289512]
[1771607506469,24.93909721,83.701,83.644,24.97289512]
[1771607506870,24.93909721,83.729,83.644,24.97289512]
[1771607507178,24.93909721,83.722,83.656,24.97289512]
[1771607507677,24.93909721,83.701,83.634,24.97289512]
[1771607508674,24.93909721,83.698,83.645,10.7617]
[1771607509066,24.93909721,83.698,83.634,24.97289512]
[1771607509269,24.93909721,83.698,83.663,0.07598531]
[1771607509672,24.93909721,83.684,83.663,0.07598531]
[1771607509973,24.93909721,83.709,83.663,0.07598531]
[1771607510171,24.93909721,83.703,83.663,0.07598531]
[1771607511678,10.7555,83.695,83.663,0.07598531]
[1771607511874,24.93909721,83.703,83.663,0.07598531]
[1771607512378,9.79091762,83.73,83.663,25.04888043]
[1771607512379,10.753,83.714,83.663,25.04888043]
[1771607512682,24.93909721,83.713,83.663,25.04888043]
[1771607512879,24.93909721,83.713,83.663,24.97289512]
[1771607513080,10.7543,83.704,83.663,24.97289512]
[1771607513279,10.7543,83.704,83.68,0.0753881]
[1771607514172,10.7533,83.712,83.68,0.0753881]
[1771607514972,10.7533,83.712,83.668,10.63679003]
[1771607515176,35.68919721,83.737,83.683,24.97289512]
[1771607515774,9.79091762,83.76,83.697,10.7552]
[1771607515775,10.7491,83.745,83.697,10.7552]
[1771607515977,24.93909721,83.753,83.683,24.97289512]
[1771607516475,0.07594579,83.729,83.683,24.97289512]
[1771607516675,24.93909721,83.728,83.667,24.97289512]
[1771607516880,10.7536,83.71,83.651,24.97289512]
[1771607517073,24.93909721,83.728,83.651,24.97289512]
[1771607518677,24.93909721,83.728,83.645,22.13760597]
[1771607518678,10.7528,83.716,83.673,10.7582]
[1771607518876,10.7528,83.716,83.673,35.73109512]
[1771607519275,10.7528,83.716,83.66,9.79091762]
[1771607519276,24.93909721,83.748,83.674,24.97289512]
[1771607519776,10.751,83.73,83.674,24.97289512]
[1771607519973,24.93909721,83.748,83.659,24.97289512]
[1771607520376,24.93909721,83.727,83.678,10.7575]
[1771607520774,35.69179721,83.717,83.67,10.7585]
[1771607520980,24.93909721,83.716,83.659,24.97289512]
[1771607521381,24.93909721,83.746,83.659,24.97289512]
[1771607521576,24.93909721,83.746,83.677,24.97289512]
[1771607522085,10.7505,83.734,83.691,10.7559]
[1771607522478,24.93909721,83.746,83.657,22.13760597]
[1771607522672,10.7527,83.716,83.666,10.7591]
[1771607522872,10.7527,83.716,83.667,24.97289512]
[1771607523077,24.93909721,83.729,83.667,24.97289512]
[1771607523275,24.93909721,83.749,83.678,24.97289512]
[1771607523883,24.93909721,83.749,83.689,24.97289512]
[1771607524682,10.7502,83.736,83.692,24.97289512]
[1771607526583,25.51039655,83.735,83.661,24.68204758]
[1771607526975,25.51039655,83.735,83.706,0.07694818]
[1771607527287,10.75,83.738,83.706,0.07694818]
[1771607527480,10.75,83.738,83.694,24.00537198]
[1771607527882,10.75,83.738,83.714,0.07554324]
[1771607528282,10.75,83.738,83.694,24.00537198]
[1771607528479,24.64412287,83.75,83.694,24.00537198]
[1771607528687,24.64412287,83.75,83.678,24.00537198]
[1771607528888,10.753,83.714,83.661,24.00537198]
[1771607529381,24.64412287,83.72,83.661,24.00537198]
[1771607529382,10.7541,83.706,83.661,24.00537198]
[1771607529580,24.64412287,83.705,83.661,24.00537198]
[1771607530686,10.7543,83.704,83.661,24.00537198]
[1771607531390,24.64412287,83.703,83.646,24.00537198]
[1771607531687,24.64412287,83.718,83.646,24.00537198]
[1771607531885,24.64412287,83.718,83.66,3.65427034]
[1771607532086,24.64412287,83.718,83.661,24.00537198]
[1771607532284,10.7529,83.716,83.663,24.00537198]
[1771607532890,10.7529,83.716,83.671,24.00537198]
[1771607533188,10.7538,83.708,83.671,24.00537198]
[1771607533378,3.65427034,83.71,83.671,24.00537198]
[1771607533581,3.65427034,83.71,83.66,3.65427034]
[1771607533885,28.29839321,83.71,83.656,10.7604]
[1771607534388,44.34204736,83.75,83.681,24.00537198]
[1771607534389,24.64412287,83.727,83.681,24.00537198]
[1771607534686,28.29839321,83.72,83.661,24.00537198]
[1771607535086,3.65427034,83.71,83.661,24.00537198]
[1771607535282,24.64412287,83.737,83.67,27.65964232]
[1771607535489,3.65427034,83.74,83.69,3.65427034]
[1771607535683,10.7502,83.736,83.69,3.65427034]
[1771607535989,10.7502,83.736,83.686,34.76187198]
[1771607536389,10.7511,83.729,83.686,34.76187198]
[1771607536787,10.7511,83.729,83.686,24.00537198]
[1771607537183,10.752,83.722,83.686,24.00537198]
[1771607537893,10.752,83.722,83.674,10.7581]
[1771607538189,10.752,83.722,83.671,24.00537198]
[1771607538190,10.7529,83.715,83.671,24.00537198]
[1771607538383,24.64412287,83.724,83.651,24.00537198]
[1771607539485,8.65654038,83.753,83.651,24.00537198]
[1771607539486,24.64412287,83.719,83.651,24.00537198]
[1771607540590,10.7551,83.698,83.652,10.7609]
[1771607541387,10.7551,83.698,83.652,34.76627198]
[1771607541797,24.64412287,83.719,83.652,34.76627198]
[1771607542688,10.7549,83.699,83.652,34.76627198]
[1771607543088,10.7549,83.699,83.655,10.7606]
[1771607543293,10.7537,83.709,83.656,24.00537198]
[1771607543499,24.64412287,83.719,83.656,24.00537198]
[1771607543900,10.7559,83.692,83.656,24.00537198]
[1771607544100,9.78178689,83.72,83.649,10.7613]
[1771607544101,24.64412287,83.705,83.649,10.7613]
[1771607544501,10.7555,83.695,83.649,34.76667198]
[1771607545504,10.7563,83.689,83.649,34.76667198]
[1771607545699,24.64412287,83.705,83.655,10.7605]
[1771607546696,24.64412287,83.705,83.649,24.00537198]
[1771607546697,10.757,83.683,83.649,24.00537198]
[1771607547104,10.7561,83.69,83.649,24.00537198]
[1771607547504,24.64412287,83.705,83.649,24.00537198]
[1771607547700,24.64412287,83.704,83.651,10.761]
[1771607547906,10.89102556,83.747,83.631,24.00537198]
[1771607547907,24.64412287,83.699,83.631,24.00537198]
[1771607548311,24.64412287,83.699,83.633,24.00537198]
[1771607549105,24.64412287,83.686,83.633,24.00537198]
[1771607549907,24.64412287,83.686,83.635,24.00537198]
[1771607551107,10.7576,83.679,83.635,24.00537198]
[1771607551503,24.64412287,83.686,83.621,24.00537198]
[1771607552608,24.64412287,83.686,83.623,24.00537198]
[1771607553610,24.64412287,83.679,83.623,24.00537198]
[1771607553814,10.7593,83.665,83.623,24.00537198]
[1771607556010,3.65855457,83.66,83.623,24.00537198]
[1771607556408,24.64412287,83.665,83.623,24.00537198]
[1771607556713,10.7603,83.658,83.623,24.00537198]
[1771607556918,3.65855457,83.65,83.608,24.00537198]
[1771607557415,10.7623,83.642,83.608,24.00537198]
[1771607557620,3.65855457,83.65,83.608,24.00537198]
[1771607557814,10.7602,83.659,83.61,24.38977267]
[1771607558120,10.7602,83.659,83.61,28.04832724]
[1771607558312,3.65855457,83.66,83.61,28.04832724]
[1771607559017,23.90237807,83.66,83.61,24.38977267]
[1771607559220,27.56093264,83.66,83.61,28.04832724]
[1771607559919,10.7602,83.659,83.61,28.04832724]
[1771607560417,27.56093264,83.66,83.61,28.04832724]
[1771607560623,10.7623,83.642,83.61,24.38977267]
[1771607560919,3.65855457,83.65,83.61,24.38977267]
[1771607561324,10.7622,83.643,83.61,24.38977267]
[1771607561620,10.7622,83.643,83.607,10.7667]
[1771607561621,3.65855457,83.64,83.593,24.38977267]
[1771607561817,23.90237807,83.643,83.601,24.38977267]
[1771607562016,23.90237807,83.639,83.591,24.38977267]
[1771607562212,23.90237807,83.654,83.601,24.38977267]
[1771607562414,27.56093264,83.65,83.601,24.38977267]
[1771607562719,3.65855457,83.64,83.601,24.38977267]
[1771607562919,27.56093264,83.64,83.59,3.65855457]
[1771607563418,27.56093264,83.63,83.58,3.65855457]
[1771607564316,27.56093264,83.63,83.58,28.04832724]
[1771607564716,10.7645,83.625,83.58,38.81852724]
[1771607565408,10.7645,83.625,83.581,24.38977267]
[1771607566211,3.65855457,83.62,83.581,24.38977267]
[1771607566416,3.65855457,83.61,83.56,3.65855457]
[1771607566617,27.56093264,83.61,83.56,3.65855457]
[1771607566816,27.56093264,83.61,83.569,10.7715]
[1771607567018,27.56093264,83.62,83.57,28.04832724]
[1771607567218,3.65855457,83.63,83.581,24.38977267]
[1771607567615,10.764,83.629,83.59,28.04832724]
[1771607567815,23.90237807,83.634,83.59,28.04832724]
[1771607568226,23.90237807,83.634,83.59,24.38977267]
[1771607568526,23.90237807,83.634,83.59,28.04832724]
[1771607568931,3.65855457,83.62,83.576,24.38977267]
[1771607570727,10.7664,83.61,83.576,24.38977267]
[1771607571725,3.65855457,83.62,83.581,10.7701]
[1771607571923,3.65855457,83.64,83.582,24.38977267]
[1771607572133,3.65855457,83.64,83.591,24.38977267]
[1771607572322,10.7647,83.623,83.591,24.38977267]
[1771607572727,27.56093264,83.64,83.591,24.38977267]
[1771607572926,10.7649,83.622,83.591,24.38977267]
[1771607573128,3.65855457,83.62,83.581,10.77]
[1771607573324,23.90237807,83.619,83.563,24.38977267]
[1771607573527,23.90237807,83.619,83.551,24.38977267]
[1771607573528,3.65855457,83.6,83.551,24.38977267]
[1771607574525,3.65855457,83.6,83.553,24.38977267]
[1771607574722,23.90237807,83.606,83.56,28.04832724]
[1771607575126,23.90237807,83.606,83.566,10.772]
[1771607575329,23.90237807,83.606,83.56,28.04832724]
[1771607575925,10.7664,83.61,83.56,28.04832724]
[1771607576126,3.65855457,83.62,83.539,18.84145292]
[1771607576127,3.65855457,83.62,83.572,24.38977267]
[1771607576433,10.7649,83.622,83.58,28.04832724]
[1771607576724,14.42235457,83.63,83.58,28.04832724]
[1771607577031,14.42235457,83.63,83.539,18.84145292]
[1771607577032,23.90237807,83.637,83.591,24.38977267]
[1771607577632,10.7632,83.635,83.591,24.38977267]
[1771607578032,2.08138951,83.676,83.581,24.38977267]
[1771607578033,10.7643,83.626,83.581,24.38977267]
[1771607579042,10.7653,83.619,83.581,24.38977267]
[1771607580029,10.7661,83.612,83.574,24.38977267]
[1771607580633,3.65855457,83.61,83.574,24.38977267]
[1771607580826,10.7672,83.604,83.574,24.38977267]
[1771607581437,10.7679,83.599,83.56,24.38977267]
[1771607581641,3.65855457,83.6,83.56,24.38977267]
[1771607581833,3.65855457,83.6,83.54,3.65855457]
[1771607581834,27.56093264,83.6,83.545,24.38977267]
[1771607582232,27.56093264,83.59,83.545,24.38977267]
[1771607582433,23.90237807,83.59,83.545,24.38977267]
[1771607582626,27.56093264,83.59,83.545,24.38977267]
[1771607582837,21.5246,83.642,83.54,3.65855457]
[1771607582838,10.7689,83.591,83.549,24.38977267]
[1771607583040,10.7689,83.591,83.551,24.38977267]
[1771607584029,3.65855457,83.6,83.553,24.38977267]
[1771607584030,10.7679,83.598,83.553,24.38977267]
[1771607585431,3.65855457,83.6,83.55,3.65855457]
[1771607585432,10.7688,83.591,83.556,24.38977267]
[1771607587439,3.65855457,83.59,83.556,24.38977267]
[1771607588140,14.42625457,83.6,83.557,24.48073325]
[1771607588439,3.65855457,83.61,83.561,24.48073325]
[1771607588637,12.98397407,83.676,83.571,24.48073325]
[1771607588638,10.7656,83.617,83.571,24.48073325]
[1771607589234,10.7666,83.609,83.571,24.48073325]
[1771607589443,24.87722219,83.619,83.571,24.48073325]
[1771607589836,3.65855457,83.62,83.58,24.48073325]
[1771607590040,28.53577676,83.62,83.561,24.48073325]
[1771607590242,3.65855457,83.61,83.561,24.48073325]
[1771607590741,10.7681,83.597,83.561,24.48073325]
[1771607591439,10.7672,83.604,83.561,24.48073325]
[1771607591639,3.65855457,83.61,83.561,24.48073325]
[1771607591839,10.768,83.598,83.561,24.48073325]
[1771607593140,10.7689,83.591,83.561,24.48073325]
[1771607594839,10.7679,83.598,83.561,24.48073325]
[1771607596032,3.65855457,83.62,83.561,24.48073325]
[1771607596233,24.87722219,83.621,83.571,24.48073325]
[1771607596733,10.7653,83.618,83.58,28.13928782]
[1771607596935,24.87722219,83.619,83.54,24.48073325]
[1771607597145,28.53577676,83.61,83.561,24.48073325]
[1771607597341,10.7676,83.601,83.562,10.7725]
[1771607597537,10.7676,83.601,83.562,35.25323325]
[1771607598139,10.7666,83.609,83.57,10.7714]
[1771607598340,10.7666,83.609,83.562,24.48073325]
[1771607598545,10.7666,83.609,83.57,3.65855457]
[1771607598744,10.7673,83.603,83.563,10.7724]
[1771607598941,44.42707283,83.643,83.539,18.84145292]
[1771607598942,24.87722219,83.629,83.581,24.48073325]
[1771607599135,8.35417176,83.628,83.581,24.48073325]
[1771607599336,33.23139395,83.627,83.581,24.48073325]
[1771607599535,24.87722219,83.627,83.581,24.48073325]
[1771607599736,8.35795307,83.626,83.581,24.48073325]
[1771607599940,24.87722219,83.627,83.581,24.48073325]
[1771607600139,8.36074727,83.626,83.581,24.48073325]
[1771607600338,24.87722219,83.627,83.539,18.84145292]
[1771607600339,24.87722219,83.641,83.591,24.48073325]
[1771607601139,8.36463781,83.64,83.6,28.13928782]
[1771607601343,3.65855457,83.65,83.6,28.13928782]
[1771607601546,24.87722219,83.655,83.61,28.13928782]
[1771607601740,10.761,83.652,83.61,28.13928782]
[1771607601944,24.87722219,83.655,83.61,28.13928782]
[1771607602137,8.37020612,83.654,83.61,28.13928782]
[1771607602342,8.37020612,83.653,83.61,24.48073325]
[1771607602538,3.65855457,83.67,83.621,24.48073325]
[1771607602749,8.37144532,83.669,83.63,3.65855457]
[1771607602945,8.37144532,83.668,83.621,24.48073325]
[1771607603139,10.7581,83.675,83.623,24.48073325]
[1771607603343,470.24972814,83.685,83.63,28.13928782]
[1771607603543,470.24972814,83.685,83.64,28.13928782]
[1771607603747,445.37250595,83.685,83.643,35.24273325]
[1771607603943,445.37250595,83.685,83.644,24.48073325]
[1771607604145,28.53577676,83.7,83.654,24.48073325]
[1771607604344,21.4968,83.75,83.6,21.5353]
[1771607604345,24.87722219,83.69,83.64,28.13928782]
[1771607604546,3.65855457,83.68,83.64,24.48073325]
[1771607604744,10.7571,83.682,83.64,28.13928782]
[1771607605545,10.7582,83.674,83.63,3.65855457]
[1771607605946,10.7582,83.674,83.626,10.7643]
[1771607606646,24.87722219,83.685,83.624,24.48073325]
[1771607606849,24.87722219,83.683,83.624,24.48073325]
[1771607607050,10.7583,83.673,83.624,24.48073325]
[1771607608045,10.7583,83.673,83.575,22.13760597]
[1771607608046,24.87722219,83.696,83.631,24.48073325]
[1771607608653,24.87722219,83.696,83.63,9.79702547]
[1771607608654,10.7564,83.688,83.638,24.48073325]
[1771607608855,24.87722219,83.696,83.638,24.48073325]
[1771607609763,24.87722219,83.696,83.646,35.24233325]
[1771607610159,24.87722219,83.696,83.647,24.48073325]
[1771607610557,24.87722219,83.696,83.632,24.48073325]
[1771607611760,35.63252219,83.696,83.642,24.48073325]
[1771607611960,10.7553,83.696,83.642,24.48073325]
[1771607612169,24.87722219,83.711,83.642,24.48073325]
[1771607612354,24.87722219,83.711,83.646,24.48073325]
[1771607612355,10.7555,83.695,83.646,24.48073325]
[1771607613264,10.7555,83.695,83.648,10.7615]
[1771607613565,10.7545,83.703,83.649,24.48073325]
[1771607613766,24.87722219,83.711,83.649,24.48073325]
[1771607614463,24.87722219,83.697,83.635,24.48073325]
[1771607615460,24.87722219,83.697,83.652,24.48073325]
[1771607615461,35.63252219,83.697,83.652,24.48073325]
[1771607616058,10.7553,83.697,83.652,24.48073325]
[1771607616865,24.87722219,83.711,83.637,24.48073325]
[1771607617474,10.757,83.683,83.64,26.21866543]
[1771607618767,10.757,83.683,83.643,26.21866543]
[1771607619757,10.7578,83.677,83.643,26.21866543]
[1771607619968,24.20486501,83.696,83.643,26.21866543]
[1771607620371,24.20486501,83.677,83.621,26.21866543]
[1771607620570,24.20486501,83.677,83.601,26.21866543]
[1771607621871,10.7596,83.663,83.619,26.21866543]
[1771607622460,10.7586,83.671,83.621,10.7649]
[1771607622661,10.7586,83.671,83.622,26.21866543]
[1771607623772,10.7586,83.671,83.624,10.7645]
[1771607623966,10.7586,83.671,83.625,26.21866543]
[1771607624672,10.7586,83.671,83.627,26.21866543]
[1771607625768,24.20486501,83.677,83.627,26.21866543]
[1771607625972,3.65770974,83.67,83.627,26.21866543]
[1771607626370,10.76,83.66,83.627,26.21866543]
[1771607626576,35.71,83.709,83.59,62.0]
[1771607626577,3.65770974,83.64,83.603,26.21866543]
[1771607626869,3.65770974,83.64,83.54,22.13760597]
[1771607626870,3.65770974,83.63,83.588,26.21866543]
[1771607627069,27.86257475,83.63,83.58,3.65770974]
[1771607627671,24.20486501,83.63,83.573,26.21866543]
[1771607627861,35.71,83.667,83.533,21.5526]
[1771607627862,24.20486501,83.619,83.55,9.81060508]
[1771607628060,24.20486501,83.619,83.551,26.21866543]
[1771607628271,10.7663,83.611,83.567,10.7719]
[1771607628769,10.7663,83.611,83.567,36.99056543]
[1771607629170,24.20486501,83.619,83.54,26.21866543]
[1771607629564,24.20486501,83.619,83.541,26.21866543]
[1771607629969,10.7664,83.61,83.559,26.21866543]
[1771607630480,10.7674,83.603,83.559,26.21866543]
[1771607631376,10.7663,83.611,83.561,26.21866543]
[1771607632773,10.7663,83.611,83.564,26.21866543]
[1771607633177,10.7663,83.611,83.567,10.7718]
[1771607634576,10.7663,83.611,83.567,36.99046543]
[1771607634778,10.7649,83.622,83.573,26.21866543]
[1771607635878,10.7649,83.622,83.575,10.7708]
[1771607637175,10.7649,83.622,83.577,10.7706]
[1771607637578,10.7639,83.629,83.578,26.21866543]
[1771607637879,24.20486501,83.647,83.59,26.21866543]
[1771607638173,10.7618,83.646,83.59,26.21866543]
[1771607638379,24.20486501,83.647,83.609,10.7664]
[1771607638575,34.96646501,83.647,83.609,10.7664]
[1771607638767,34.96646501,83.647,83.602,10.7673]
[1771607639368,10.7625,83.641,83.602,10.7673]
[1771607639572,24.20486501,83.647,83.594,10.7683]
[1771607640175,34.96806501,83.635,83.594,10.7683]
[1771607641473,24.20486501,83.635,83.594,10.7683]
[1771607641679,24.20486501,83.635,83.6,10.7675]
[1771607641978,10.7621,83.644,83.6,10.7675]
[1771607642182,24.20486501,83.649,83.607,10.7667]
[1771607643373,24.20486501,83.649,83.599,10.7678]
[1771607643776,24.20486501,83.649,83.59,26.21866543]
[1771607644079,24.20486501,83.649,83.605,10.767]
[1771607644275,24.20486501,83.649,83.59,26.21866543]
[1771607644276,10.7628,83.638,83.59,26.21866543]
[1771607644479,24.20486501,83.649,83.59,26.21866543]
[1771607646381,10.7627,83.639,83.593,10.7684]
[1771607646584,10.7627,83.639,83.593,25.53054724]
[1771607646882,24.20486501,83.649,83.593,25.53054724]
[1771607647073,10.7626,83.64,83.599,10.7677]
[1771607648478,34.96626501,83.649,83.605,10.767]
[1771607649279,10.7623,83.642,83.598,10.7679]
[1771607649674,10.7623,83.642,83.593,25.53054724]
[1771607649883,26.20121702,83.648,83.593,25.53054724]
[1771607650483,3.66041364,83.64,83.593,25.53054724]
[1771607650684,3.66041364,83.64,83.605,10.767]
[1771607651082,3.66041364,83.65,83.601,24.89888218]
[1771607651280,35.71,83.687,83.596,10.7681]
[1771607651281,3.66041364,83.63,83.596,10.7681]
[1771607652983,3.66041364,83.62,83.571,24.89888218]
[1771607653487,3.66041364,83.61,83.571,24.89888218]
[1771607653878,26.20121702,83.62,83.571,24.89888218]
[1771607654686,26.20121702,83.617,83.574,10.7709]
[1771607655186,26.20121702,83.617,83.559,24.89888218]
[1771607656185,10.767,83.605,83.566,10.7719]
[1771607659494,26.20121702,83.629,83.559,24.89888218]
[1771607659693,26.20121702,83.629,83.561,24.89888218]
[1771607660089,10.765,83.621,83.58,24.89888218]
[1771607661287,10.7659,83.614,83.58,24.89888218]
[1771607661487,26.20121702,83.629,83.58,24.89888218]
[1771607661899,26.20121702,83.629,83.511,29.68929461]
[1771607661900,167.4578,83.62,83.48,28.35693579]
[1771607662101,9.81272762,83.57,83.48,28.35693579]
[1771607662301,8.22211145,83.569,83.48,28.35693579]
[1771607662604,8.22211145,83.569,83.444,35.9]
[1771607662605,10.7752,83.542,83.487,28.36626657]
[1771607663489,10.774,83.552,83.498,28.36553343]
[1771607663690,9.81272762,83.57,83.498,28.36553343]
[1771607663903,9.28466231,83.569,83.498,28.36553343]
[1771607664203,9.81272762,83.57,83.498,28.36553343]
[1771607664204,45.18466231,83.568,83.498,28.36553343]
[1771607664397,9.81272762,83.57,83.498,28.36553343]
[1771607664398,45.18466231,83.567,83.498,28.36553343]
[1771607664592,9.81272762,83.55,83.48,27.65304769]
[1771607664902,9.81272762,83.55,83.48,27.48016975]
[1771607664903,9.28466231,83.549,83.48,27.48016975]
[1771607665203,9.28466231,83.548,83.48,27.48016975]
[1771607665404,9.28466231,83.547,83.48,27.48016975]
[1771607665700,10.7778,83.522,83.48,27.48016975]
[1771607667006,10.7787,83.515,83.464,27.14397567]
[1771607667213,10.7787,83.515,83.46,10.7856]
[1771607667214,9.24779616,83.529,83.435,2.08413185]
[1771607667411,9.81272762,83.51,83.436,27.14277844]
[1771607667619,9.24779616,83.509,83.436,27.14277844]
[1771607667820,9.81272762,83.51,83.436,27.14277844]
[1771607667821,9.24779616,83.508,83.436,27.14277844]
[1771607668117,9.24779616,83.507,83.436,27.14277844]
[1771607668315,9.81272762,83.47,83.413,27.45661866]
[1771607668509,10.7861,83.457,83.413,27.45661866]
[1771607668912,9.81272762,83.45,83.377,27.45661866]
[1771607669710,10.7905,83.423,83.377,27.45661866]
[1771607669924,9.86156875,83.43,83.335,27.45555123]
[1771607670115,9.86156875,83.41,83.342,26.85401097]
[1771607670415,9.86156875,83.43,83.342,26.85401097]
[1771607670613,10.7912,83.418,83.344,26.85401097]
[1771607670808,9.86156875,83.43,83.344,26.85401097]
[1771607671213,9.86156875,83.41,83.344,26.85401097]
[1771607671822,10.7948,83.39,83.344,26.85401097]
[1771607672523,10.7933,83.402,83.344,26.85401097]
[1771607672711,11.8710061,83.43,83.344,26.85401097]
[1771607672908,9.86156875,83.43,83.344,26.85401097]
[1771607673113,9.86156875,83.41,83.344,26.85401097]
[1771607674116,10.7923,83.409,83.344,26.85401097]
[1771607674620,10.7951,83.388,83.332,19.1192829]
[1771607675021,9.86156875,83.39,83.332,19.1192829]
[1771607676521,9.86156875,83.39,83.332,46.27858495]
[1771607677023,9.86156875,83.39,83.333,27.15930205]
[1771607677923,11.86321547,83.43,83.333,27.15930205]
[1771607678118,9.86156875,83.42,83.333,27.15930205]
[1771607679127,9.86156875,83.42,83.332,19.1192829]
[1771607679128,10.7928,83.406,83.338,27.13760962]
[1771607679619,10.7941,83.396,83.338,27.13760962]
[1771607681523,10.7941,83.396,83.34,27.30112387]
[1771607685632,10.7964,83.378,83.34,27.30112387]
[1771607686729,10.7992,83.356,83.332,8.29e-05]
[1771607686927,10.7992,83.356,83.307,27.26802486]
[1771607687330,9.86156875,83.36,83.289,27.26716626]
[1771607688029,35.9,83.378,83.289,27.26716626]
[1771607688030,9.86156875,83.34,83.289,27.26716626]
[1771607688230,9.86156875,83.34,83.251,27.29998812]
[1771607688422,9.86156875,83.34,83.26,27.29998812]
[1771607688825,9.86156875,83.32,83.242,27.29998812]
[1771607689022,9.86156875,83.32,83.22,9.86156875]
[1771607689023,10.8069,83.297,83.245,27.29998812]
[1771607689424,10.8057,83.306,83.249,27.29913642]
[1771607690636,9.86156875,83.3,83.249,27.29913642]
[1771607691135,9.86156875,83.32,83.249,27.29913642]
[1771607691335,10.807,83.296,83.249,27.29913642]
[1771607691730,9.86156875,83.32,83.249,27.29913642]
[1771607691926,51.22589521,83.582,83.21,9.86156875]
[1771607691927,9.86156875,83.33,83.25,27.27772198]
[1771607692126,9.86156875,83.33,83.251,27.98207003]
[1771607692331,9.86156875,83.35,83.251,27.98207003]
[1771607692532,10.8027,83.329,83.277,10.8094]
[1771607692839,9.86156875,83.37,83.278,27.98207003]
[1771607693331,9.86156875,83.37,83.297,27.98146768]
[1771607693539,9.86156875,83.39,83.297,27.98146768]
[1771607693835,10.7967,83.376,83.312,27.98146768]
[1771607694030,10.7967,83.376,83.26,62.0]
[1771607694031,9.86156875,83.34,83.261,28.03734113]
[1771607694234,9.86156875,83.34,83.2,170.39137043]
[1771607694235,9.86156875,83.27,83.2,2.08987043]
[1771607694433,9.86156875,83.27,83.12,168.4635]
[1771607694434,9.86156875,83.28,83.18,9.86156875]
[1771607694631,9.86156875,83.28,83.17,9.86156875]
[1771607694830,168.0503,83.325,83.17,9.86156875]
[1771607695032,168.0384,83.331,83.21,9.86156875]
[1771607695033,9.86156875,83.3,83.21,9.86156875]
[1771607695229,9.86156875,83.31,83.21,20.86156875]
[1771607695743,10.8074,83.293,83.211,10.818]
[1771607696134,10.8074,83.293,83.212,66.78966337]
[1771607696335,9.86156875,83.29,83.212,66.78966337]
[1771607696634,9.86156875,83.29,83.17,9.86156875]
[1771607696635,9.86156875,83.27,83.17,9.86156875]
[1771607696939,10.8136,83.245,83.17,9.86156875]
[1771607697643,10.8153,83.232,83.16,9.86156875]
[1771607697842,10.8153,83.232,83.151,10.8258]
[1771607698441,10.817,83.219,83.15,9.86156875]
[1771607698640,10.817,83.219,83.151,56.33859218]
[1771607699342,9.86156875,83.25,83.151,56.33859218]
[1771607699343,10.8154,83.231,83.151,56.33859218]
[1771607700237,10.8168,83.221,83.151,56.33859218]
[1771607700440,9.86156875,83.23,83.151,56.33859218]
[1771607701134,9.86156875,83.21,83.131,56.46672024]
[1771607701335,168.1757,83.263,83.131,56.46672024]
[1771607701535,10.8139,83.243,83.181,56.46672024]
[1771607701746,9.86156875,83.27,83.181,56.46672024]
[1771607702136,9.86156875,83.25,83.151,56.55105965]
[1771607702943,168.1654,83.268,83.122,2.09190559]
[1771607702944,9.86156875,83.21,83.126,56.55105965]
[1771607703135,10.8213,83.186,83.126,56.55105965]
[1771607703334,168.2399,83.232,83.126,51.79105965]
[1771607703335,12.0759536,83.215,83.126,51.79105965]
[1771607703540,168.2382,83.232,83.126,51.79105965]
[1771607703736,9.86156875,83.18,83.09,11.95413473]
[1771607704042,9.86156875,83.18,83.125,1.288e-05]
[1771607704242,9.86156875,83.2,83.125,1.288e-05]
[1771607704640,10.8199,83.197,83.125,1.288e-05]
[1771607705244,9.86156875,83.21,83.125,1.288e-05]
[1771607705641,9.86156875,83.21,83.126,45.54708257]
[1771607705950,10.8213,83.186,83.126,45.54708257]
[1771607706151,9.86156875,83.21,83.126,45.54708257]
[1771607707143,10.8212,83.187,83.126,45.54708257]
[1771607707449,9.86156875,83.21,83.126,45.54708257]
[1771607707648,10.821,83.188,83.126,45.54708257]
[1771607707847,9.86156875,83.23,83.131,45.49975834]
[1771607708155,9.86156875,83.23,83.13,9.86156875]
[1771607708156,9.86156875,83.23,83.135,44.58484732]
[1771607708554,10.8174,83.216,83.151,44.58484732]
[1771607708747,9.86156875,83.25,83.151,44.58484732]
[1771607709148,9.86156875,83.25,83.154,44.57691596]